fUST/lending_fUST_20250625
["ID","MTS","AMOUNT","RATE_DAILY","PERIOD"]
[367477130,1750811447289,-460.0,0.0001726,2]
[367477131,1750811447300,-500.0,0.00017272,2]
[367477132,1750811447309,-500.0,0.00017287,2]
[367477133,1750811447319,-500.0,0.00017287,2]
[367477134,1750811447329,-500.0,0.00017294,2]
[367477135,1750811447339,-500.0,0.00017294,2]
[367477136,1750811447347,-500.0,0.00017314,2]
[367477137,1750811447357,-500.0,0.00017329,2]
[367477138,1750811447366,-500.0,0.00017329,2]
[367477139,1750811447376,-12556.00642039,0.00017392,2]
[367477140,1750811447385,-160.0,0.00017392,2]
[367477141,1750811447395,-836.80226758,0.00017392,2]
[367477142,1750811447404,-230.20892031,0.00017392,2]
[367477143,1750811447413,-425.14181427,0.00017392,2]
[367477144,1750811447425,-213.66798275,0.00017392,2]
[367477145,1750811447435,-846.68469334,0.00017392,2]
[367477146,1750811447444,-160.0,0.00017392,2]
[367477147,1750811447454,-160.0,0.00017392,2]
[367477148,1750811447464,-160.0,0.00017393,2]
[367477149,1750811447473,-449.86,0.00017534,2]
[367477150,1750811447482,-362.24,0.00017534,2]
[367477151,1750811447491,-460.0,0.00017534,2]
[367477152,1750811447501,-460.0,0.00017534,2]
[367477153,1750811447511,-363.46,0.00017534,2]
[367477154,1750811447520,-293.68,0.00017534,2]
[367477155,1750811447530,-460.0,0.00017534,2]
[367477156,1750811447540,-460.0,0.00017534,2]
[367477157,1750811447550,-460.0,0.00017534,2]
[367477158,1750811447559,-460.0,0.00017534,2]
[367477159,1750811447568,-430.0,0.00017534,2]
[367477160,1750811447578,-460.0,0.00017534,2]
[367477161,1750811447588,-460.0,0.00017534,2]
[367477162,1750811447597,-460.0,0.00017534,2]
[367477163,1750811447606,-156.86,0.00017534,2]
[367477164,1750811447616,-515.06,0.00017534,2]
[367477165,1750811447625,-460.0,0.00017534,2]
[367477166,1750811447634,-460.0,0.00017534,2]
[367477167,1750811447644,-460.0,0.00017534,2]
[367477168,1750811447653,-460.0,0.00017534,2]
[367477169,1750811447662,-212.5849442,0.00017534,2]
[367477170,1750811447672,-515.76206434,0.00017534,2]
[367477171,1750811447682,-460.0,0.00017534,2]
[367477172,1750811447691,-2156.45,0.00017534,2]
[367477173,1750811447701,-460.0,0.00017534,2]
[367477174,1750811447711,-460.0,0.00017534,2]
[367477175,1750811447721,-460.0,0.00017534,2]
[367477176,1750811447730,-460.0,0.00017534,2]
[367477177,1750811447739,-460.0,0.00017534,2]
[367477178,1750811447749,-676.49,0.00017534,2]
[367477179,1750811447759,-460.0,0.00017534,2]
[367477180,1750811447768,-460.0,0.00017534,2]
[367477181,1750811447777,-460.0,0.00017534,2]
[367477182,1750811447786,-1313.56,0.00017534,2]
[367477183,1750811447796,-571.77,0.00017534,2]
[367477184,1750811447805,-460.0,0.00017534,2]
[367477185,1750811447815,-460.0,0.00017534,2]
[367477186,1750811447824,-460.0,0.00017534,2]
[367477187,1750811447833,-460.0,0.00017534,2]
[367477188,1750811447842,-460.0,0.00017534,2]
[367477189,1750811447852,-460.0,0.00017534,2]
[367477190,1750811447860,-460.0,0.00017534,2]
[367477191,1750811447869,-460.0,0.00017534,2]
[367477192,1750811447878,-460.0,0.00017534,2]
[367477193,1750811447887,-460.0,0.00017534,2]
[367477194,1750811447897,-460.0,0.00017534,2]
[367477195,1750811447906,-1812.06,0.00017534,2]
[367477196,1750811447915,-460.0,0.00017534,2]
[367477197,1750811447926,-490.59,0.00017534,2]
[367477198,1750811447935,-460.0,0.00017534,2]
[367477199,1750811447943,-460.0,0.00017534,2]
[367477200,1750811447953,-460.0,0.00017534,2]
[367477201,1750811447962,-545.47,0.00017534,2]
[367477202,1750811447971,-234.16,0.00017534,2]
[367477203,1750811447980,-460.0,0.00017534,2]
[367477204,1750811447989,-460.0,0.00017534,2]
[367477205,1750811448001,-460.0,0.00017534,2]
[367477206,1750811448012,-460.0,0.00017534,2]
[367477207,1750811448021,-460.0,0.00017534,2]
[367477208,1750811448030,-537.72,0.00017534,2]
[367477209,1750811448040,-1508.66,0.00017534,2]
[367477210,1750811448049,-460.0,0.00017534,2]
[367477211,1750811448059,-189.52,0.00017534,2]
[367477212,1750811448068,-1424.06,0.00017534,2]
[367477213,1750811448077,-460.0,0.00017534,2]
[367477214,1750811448087,-460.0,0.00017534,2]
[367477215,1750811448096,-159.3,0.00017534,2]
[367477216,1750811448106,-509.22,0.00017534,2]
[367477217,1750811448116,-460.0,0.00017534,2]
[367477218,1750811448125,-482.77,0.00017534,2]
[367477219,1750811448135,-1692.88,0.00017534,2]
[367477220,1750811448144,-527.32,0.00017534,2]
[367477221,1750811448153,-1544.24,0.00017534,2]
[367477222,1750811448163,-460.0,0.00017534,2]
[367477223,1750811448174,-501.62,0.00017534,2]
[367477224,1750811448183,-460.0,0.00017534,2]
[367477225,1750811448194,-460.0,0.00017534,2]
[367477226,1750811448203,-460.0,0.00017534,2]
[367477227,1750811448213,-483.62,0.00017534,2]
[367477228,1750811448222,-460.0,0.00017534,2]
[367477229,1750811448232,-466.94,0.00017534,2]
[367477230,1750811448241,-460.0,0.00017534,2]
[367477231,1750811448250,-1811.2,0.00017534,2]
[367477232,1750811448259,-460.0,0.00017534,2]
[367477233,1750811448269,-1170.47,0.00017534,2]
[367477234,1750811448278,-1492.37,0.00017534,2]
[367477235,1750811448287,-460.0,0.00017534,2]
[367477236,1750811448296,-1596.83930111,0.00017571,2]
[367477237,1750811448305,-1000.0,0.00017675,2]
[367477238,1750811448314,-500.0,0.00017792,2]
[367477239,1750811448323,-500.0,0.00017792,2]
[367477240,1750811448334,-457.08,0.00017808,2]
[367477241,1750811448343,-294.48,0.00017808,2]
[367477242,1750811448352,-460.0,0.00017808,2]
[367477243,1750811448362,-460.0,0.00017808,2]
[367477244,1750811448372,-460.0,0.00017808,2]
[367477245,1750811448382,-314.04,0.00017808,2]
[367477246,1750811448392,-460.0,0.00017808,2]
[367477247,1750811448401,-460.0,0.00017808,2]
[367477248,1750811448411,-203.54,0.00017808,2]
[367477249,1750811448420,-515.06,0.00017808,2]
[367477250,1750811448429,-287.24,0.00017808,2]
[367477251,1750811448438,-460.0,0.00017808,2]
[367477252,1750811448448,-460.0,0.00017808,2]
[367477253,1750811448458,-444.66,0.00017808,2]
[367477254,1750811448467,-460.0,0.00017808,2]
[367477255,1750811448476,-2156.45,0.00017808,2]
[367477256,1750811448485,-460.0,0.00017808,2]
[367477257,1750811448495,-460.0,0.00017808,2]
[367477258,1750811448504,-460.0,0.00017808,2]
[367477259,1750811448513,-460.0,0.00017808,2]
[367477260,1750811448523,-460.0,0.00017808,2]
[367477261,1750811448532,-676.49,0.00017808,2]
[367477262,1750811448541,-460.0,0.00017808,2]
[367477263,1750811448551,-460.0,0.00017808,2]
[367477264,1750811448560,-460.0,0.00017808,2]
[367477265,1750811448569,-1313.56,0.00017808,2]
[367477266,1750811448579,-571.77,0.00017808,2]
[367477267,1750811448588,-371.73,0.00017808,2]
[367477268,1750811448598,-460.0,0.00017808,2]
[367477269,1750811448607,-460.0,0.00017808,2]
[367477270,1750811448617,-460.0,0.00017808,2]
[367477271,1750811448627,-470.65,0.00017808,2]
[367477272,1750811448637,-460.0,0.00017808,2]
[367477273,1750811448648,-460.0,0.00017808,2]
[367477274,1750811448658,-244.8,0.00017808,2]
[367477275,1750811448667,-460.0,0.00017808,2]
[367477276,1750811448677,-460.0,0.00017808,2]
[367477277,1750811448687,-460.0,0.00017808,2]
[367477278,1750811448697,-460.0,0.00017808,2]
[367477279,1750811448707,-1812.06,0.00017808,2]
[367477280,1750811448717,-460.0,0.00017808,2]
[367477281,1750811448727,-490.59,0.00017808,2]
[367477282,1750811448737,-460.0,0.00017808,2]
[367477283,1750811448747,-460.0,0.00017808,2]
[367477284,1750811448757,-460.0,0.00017808,2]
[367477285,1750811448767,-545.47,0.00017808,2]
[367477286,1750811448776,-460.0,0.00017808,2]
[367477287,1750811448786,-460.0,0.00017808,2]
[367477288,1750811448796,-533.18,0.00017808,2]
[367477289,1750811448806,-460.0,0.00017808,2]
[367477290,1750811448816,-460.0,0.00017808,2]
[367477291,1750811448825,-537.72,0.00017808,2]
[367477292,1750811448835,-1508.66,0.00017808,2]
[367477293,1750811448844,-460.0,0.00017808,2]
[367477294,1750811448853,-1424.06,0.00017808,2]
[367477295,1750811448863,-460.0,0.00017808,2]
[367477296,1750811448872,-460.0,0.00017808,2]
[367477297,1750811448881,-364.14,0.00017808,2]
[367477298,1750811448891,-482.77,0.00017808,2]
[367477299,1750811448900,-1692.88,0.00017808,2]
[367477300,1750811448910,-527.32,0.00017808,2]
[367477301,1750811448920,-1544.24,0.00017808,2]
[367477302,1750811448930,-460.0,0.00017808,2]
[367477303,1750811448940,-501.62,0.00017808,2]
[367477304,1750811448949,-460.0,0.00017808,2]
[367477305,1750811448959,-460.0,0.00017808,2]
[367477306,1750811448969,-414.26,0.00017808,2]
[367477307,1750811448978,-483.62,0.00017808,2]
[367477308,1750811448988,-460.0,0.00017808,2]
[367477309,1750811448999,-460.0,0.00017808,2]
[367477310,1750811449010,-1811.2,0.00017808,2]
[367477311,1750811449019,-460.0,0.00017808,2]
[367477312,1750811449030,-1170.47,0.00017808,2]
[367477313,1750811449040,-1492.37,0.00017808,2]
[367477314,1750811449050,-460.0,0.00017808,2]
[367477315,1750811449060,-1000.0,0.00017835,2]
[367477316,1750811449071,-1000.0,0.00017835,2]
[367477317,1750811449082,-500.0,0.00017842,2]
[367477318,1750811449092,-571.91904621,0.00017862,2]
[367477319,1750811449102,-500.0,0.00017877,2]
[367477320,1750811449112,-377.46271169,0.00017877,2]
[367477321,1750811449123,-420.0,0.00017959,2]
[367477322,1750811449133,-420.0,0.0001796,2]
[367477323,1750811449143,-480.0,0.00018049,2]
[367477324,1750811449153,-460.0,0.00018082,2]
[367477325,1750811449163,-460.0,0.00018082,2]
[367477326,1750811449290,-460.0,0.00018082,2]
[367477327,1750811449300,-236.24,0.00018082,2]
[367477328,1750811449310,-460.0,0.00018082,2]
[367477329,1750811449320,-515.06,0.00018082,2]
[367477330,1750811449330,-396.16,0.00018082,2]
[367477331,1750811449340,-460.0,0.00018082,2]
[367477332,1750811449349,-460.0,0.00018082,2]
[367477333,1750811449359,-2156.45,0.00018082,2]
[367477334,1750811449369,-553.04,0.00018082,2]
[367477335,1750811449378,-460.0,0.00018082,2]
[367477336,1750811449388,-460.0,0.00018082,2]
[367477337,1750811449397,-460.0,0.00018082,2]
[367477338,1750811449406,-460.0,0.00018082,2]
[367477339,1750811449416,-676.49,0.00018082,2]
[367477340,1750811449426,-527.52,0.00018082,2]
[367477341,1750811449435,-460.0,0.00018082,2]
[367477342,1750811449445,-460.0,0.00018082,2]
[367477343,1750811449454,-1313.56,0.00018082,2]
[367477344,1750811449464,-571.77,0.00018082,2]
[367477345,1750811449473,-460.0,0.00018082,2]
[367477346,1750811449483,-460.0,0.00018082,2]
[367477347,1750811449492,-460.0,0.00018082,2]
[367477348,1750811449502,-460.0,0.00018082,2]
[367477349,1750811449511,-460.0,0.00018082,2]
[367477350,1750811449521,-192.96,0.00018082,2]
[367477351,1750811449531,-460.0,0.00018082,2]
[367477352,1750811449540,-460.0,0.00018082,2]
[367477353,1750811449550,-460.0,0.00018082,2]
[367477354,1750811449559,-1812.06,0.00018082,2]
[367477355,1750811449569,-460.0,0.00018082,2]
[367477356,1750811449578,-490.59,0.00018082,2]
[367477357,1750811449588,-460.0,0.00018082,2]
[367477358,1750811449599,-460.0,0.00018082,2]
[367477359,1750811449609,-460.0,0.00018082,2]
[367477360,1750811449620,-545.47,0.00018082,2]
[367477361,1750811449631,-460.0,0.00018082,2]
[367477362,1750811449642,-460.0,0.00018082,2]
[367477363,1750811449652,-460.0,0.00018082,2]
[367477364,1750811449661,-460.0,0.00018082,2]
[367477365,1750811449673,-537.72,0.00018082,2]
[367477366,1750811449684,-1508.66,0.00018082,2]
[367477367,1750811449694,-460.0,0.00018082,2]
[367477368,1750811449705,-1424.06,0.00018082,2]
[367477369,1750811449714,-460.0,0.00018082,2]
[367477370,1750811449724,-460.0,0.00018082,2]
[367477371,1750811449733,-482.77,0.00018082,2]
[367477372,1750811449743,-1692.88,0.00018082,2]
[367477373,1750811449753,-527.32,0.00018082,2]
[367477374,1750811449762,-1544.24,0.00018082,2]
[367477375,1750811449771,-460.0,0.00018082,2]
[367477376,1750811449781,-501.62,0.00018082,2]
[367477377,1750811449791,-515.78,0.00018082,2]
[367477378,1750811449802,-460.0,0.00018082,2]
[367477379,1750811449811,-483.62,0.00018082,2]
[367477380,1750811449821,-460.0,0.00018082,2]
[367477381,1750811449830,-460.0,0.00018082,2]
[367477382,1750811449839,-1811.2,0.00018082,2]
[367477383,1750811449850,-460.0,0.00018082,2]
[367477384,1750811449860,-1170.47,0.00018082,2]
[367477385,1750811449870,-1492.37,0.00018082,2]
[367477386,1750811449879,-460.0,0.00018082,2]
[367477387,1750811449888,-1596.83930111,0.00018188,2]
[367477388,1750811449898,-500.0,0.00018223,2]
[367477389,1750811449907,-314.0,0.00018244,2]
[367477390,1750811449916,-500.0,0.000183,2]
[367477391,1750811449926,-151.0,0.000183,2]
[367477392,1750811449935,-460.0,0.00018356,2]
[367477393,1750811449944,-460.0,0.00018356,2]
[367477394,1750811449953,-306.58,0.00018356,2]
[367477395,1750811449963,-460.0,0.00018356,2]
[367477396,1750811449972,-515.06,0.00018356,2]
[367477397,1750811449981,-460.0,0.00018356,2]
[367477398,1750811449991,-460.0,0.00018356,2]
[367477399,1750811450003,-2156.45,0.00018356,2]
[367477400,1750811450013,-460.0,0.00018356,2]
[367477401,1750811450022,-421.54,0.00018356,2]
[367477402,1750811450032,-460.0,0.00018356,2]
[367477403,1750811450042,-460.0,0.00018356,2]
[367477404,1750811450052,-676.49,0.00018356,2]
[367477405,1750811450062,-460.0,0.00018356,2]
[367477406,1750811450071,-460.0,0.00018356,2]
[367477407,1750811450080,-1313.56,0.00018356,2]
[367477408,1750811450090,-571.77,0.00018356,2]
[367477409,1750811450100,-460.0,0.00018356,2]
[367477410,1750811450110,-460.0,0.00018356,2]
[367477411,1750811450119,-460.0,0.00018356,2]
[367477412,1750811450129,-460.0,0.00018356,2]
[367477413,1750811450139,-460.0,0.00018356,2]
[367477414,1750811450148,-460.0,0.00018356,2]
[367477415,1750811450158,-460.0,0.00018356,2]
[367477416,1750811450167,-532.42,0.00018356,2]
[367477417,1750811450177,-1812.06,0.00018356,2]
[367477418,1750811450186,-460.0,0.00018356,2]
[367477419,1750811450196,-490.59,0.00018356,2]
[367477420,1750811450205,-460.0,0.00018356,2]
[367477421,1750811450214,-460.0,0.00018356,2]
[367477422,1750811450223,-460.0,0.00018356,2]
[367477423,1750811450233,-545.47,0.00018356,2]
[367477424,1750811450243,-439.63,0.00018356,2]
[367477425,1750811450252,-460.0,0.00018356,2]
[367477426,1750811450262,-460.0,0.00018356,2]
[367477427,1750811450271,-460.0,0.00018356,2]
[367477428,1750811450281,-537.72,0.00018356,2]
[367477429,1750811450290,-1508.66,0.00018356,2]
[367477430,1750811450299,-460.0,0.00018356,2]
[367477431,1750811450308,-1424.06,0.00018356,2]
[367477432,1750811450318,-460.0,0.00018356,2]
[367477433,1750811450327,-460.0,0.00018356,2]
[367477434,1750811450337,-482.77,0.00018356,2]
[367477435,1750811450347,-1692.88,0.00018356,2]
[367477436,1750811450356,-527.32,0.00018356,2]
[367477437,1750811450365,-1544.24,0.00018356,2]
[367477438,1750811450375,-460.0,0.00018356,2]
[367477439,1750811450384,-501.62,0.00018356,2]
[367477440,1750811450393,-460.0,0.00018356,2]
[367477441,1750811450402,-483.62,0.00018356,2]
[367477442,1750811450411,-460.0,0.00018356,2]
[367477443,1750811450420,-460.0,0.00018356,2]
[367477444,1750811450429,-1811.2,0.00018356,2]
[367477445,1750811450439,-460.0,0.00018356,2]
[367477446,1750811450448,-1170.47,0.00018356,2]
[367477447,1750811450458,-1492.37,0.00018356,2]
[367477448,1750811450467,-460.0,0.00018356,2]
[367477449,1750811450476,-359.73019606,0.00018368,2]
[367477450,1750811450485,-1500.0,0.00018383,2]
[367477451,1750811450495,-168.0,0.00018499,2]
[367477452,1750811450504,-168.0,0.00018552,2]
[367477453,1750811450513,-151.0,0.000186,2]
[367477454,1750811450522,-416.66,0.0001863,2]
[367477455,1750811450532,-562.21,0.0001863,2]
[367477456,1750811450541,-460.0,0.0001863,2]
[367477457,1750811450551,-515.06,0.0001863,2]
[367477458,1750811450560,-585.58,0.0001863,2]
[367477459,1750811450569,-460.0,0.0001863,2]
[367477460,1750811450579,-2156.45,0.0001863,2]
[367477461,1750811450588,-460.0,0.0001863,2]
[367477462,1750811450598,-460.0,0.0001863,2]
[367477463,1750811450607,-460.0,0.0001863,2]
[367477464,1750811450616,-676.49,0.0001863,2]
[367477465,1750811450626,-343.20698017,0.0001863,2]
[367477466,1750811450635,-460.0,0.0001863,2]
[367477467,1750811450644,-1313.56,0.0001863,2]
[367477468,1750811450653,-571.77,0.0001863,2]
[367477469,1750811450663,-460.0,0.0001863,2]
[367477470,1750811450673,-460.0,0.0001863,2]
[367477471,1750811450682,-460.0,0.0001863,2]
[367477472,1750811450691,-460.0,0.0001863,2]
[367477473,1750811450701,-460.0,0.0001863,2]
[367477474,1750811450711,-450.44,0.0001863,2]
[367477475,1750811450720,-460.0,0.0001863,2]
[367477476,1750811450730,-1812.06,0.0001863,2]
[367477477,1750811450739,-460.0,0.0001863,2]
[367477478,1750811450748,-490.59,0.0001863,2]
[367477479,1750811450757,-460.0,0.0001863,2]
[367477480,1750811450767,-460.0,0.0001863,2]
[367477481,1750811450777,-600.55,0.0001863,2]
[367477482,1750811450786,-545.47,0.0001863,2]
[367477483,1750811450796,-460.0,0.0001863,2]
[367477484,1750811450805,-460.0,0.0001863,2]
[367477485,1750811450815,-460.0,0.0001863,2]
[367477486,1750811450825,-537.72,0.0001863,2]
[367477487,1750811450837,-1508.66,0.0001863,2]
[367477488,1750811450847,-460.0,0.0001863,2]
[367477489,1750811450857,-1424.06,0.0001863,2]
[367477490,1750811450867,-460.0,0.0001863,2]
[367477491,1750811450876,-460.0,0.0001863,2]
[367477492,1750811450886,-482.77,0.0001863,2]
[367477493,1750811450901,-1692.88,0.0001863,2]
[367477494,1750811450916,-527.32,0.0001863,2]
[367477495,1750811450925,-1544.24,0.0001863,2]
[367477496,1750811450935,-460.0,0.0001863,2]
[367477497,1750811450945,-501.62,0.0001863,2]
[367477498,1750811450954,-577.5,0.0001863,2]
[367477499,1750811450963,-483.62,0.0001863,2]
[367477500,1750811450974,-460.0,0.0001863,2]
[367477501,1750811450983,-460.0,0.0001863,2]
[367477502,1750811450992,-1811.2,0.0001863,2]
[367477503,1750811451006,-315.92,0.0001863,2]
[367477504,1750811451015,-1170.47,0.0001863,2]
[367477505,1750811451025,-1492.37,0.0001863,2]
[367477506,1750811451035,-460.0,0.0001863,2]
[367477507,1750811451044,-314.0,0.00018634,2]
[367477508,1750811451053,-207.4,0.00018646,2]
[367477509,1750811451063,-5000.0,0.00018646,2]
[367477510,1750811451072,-363.0,0.00018732,2]
[367477511,1750811451082,-22468.26934151,0.000188,2]
[367477512,1750811451093,-22468.26934126,0.000188,2]
[367477513,1750811451103,-22468.26934126,0.000188,2]
[367477514,1750811451112,-22468.26934126,0.000188,2]
[367477515,1750811451122,-22468.26934126,0.000188,2]
[367477516,1750811451132,-22468.26934126,0.000188,2]
[367477517,1750811451141,-1596.83930111,0.00018804,2]
[367477518,1750811451151,-168.0,0.00018819,2]
[367477519,1750811451161,-151.0,0.000189,2]
[367477520,1750811451171,-460.0,0.00018904,2]
[367477521,1750811451180,-515.06,0.00018904,2]
[367477522,1750811451189,-460.0,0.00018904,2]
[367477523,1750811451199,-2156.45,0.00018904,2]
[367477524,1750811451208,-460.0,0.00018904,2]
[367477525,1750811451218,-337.33,0.00018904,2]
[367477526,1750811451228,-460.0,0.00018904,2]
[367477527,1750811451238,-676.49,0.00018904,2]
[367477528,1750811451247,-460.0,0.00018904,2]
[367477529,1750811451256,-1313.56,0.00018904,2]
[367477530,1750811451266,-571.77,0.00018904,2]
[367477531,1750811451275,-460.0,0.00018904,2]
[367477532,1750811451285,-460.0,0.00018904,2]
[367477533,1750811451294,-460.0,0.00018904,2]
[367477534,1750811451304,-460.0,0.00018904,2]
[367477535,1750811451314,-460.0,0.00018904,2]
[367477536,1750811451323,-1812.06,0.00018904,2]
[367477537,1750811451333,-460.0,0.00018904,2]
[367477538,1750811451342,-490.59,0.00018904,2]
[367477539,1750811451352,-460.0,0.00018904,2]
[367477540,1750811451361,-460.0,0.00018904,2]
[367477541,1750811451371,-545.47,0.00018904,2]
[367477542,1750811451380,-571.9480995,0.00018904,2]
[367477543,1750811451390,-460.0,0.00018904,2]
[367477544,1750811451400,-460.0,0.00018904,2]
[367477545,1750811451410,-537.72,0.00018904,2]
[367477546,1750811451419,-1508.66,0.00018904,2]
[367477547,1750811451428,-460.0,0.00018904,2]
[367477548,1750811451437,-1424.06,0.00018904,2]
[367477549,1750811451446,-460.0,0.00018904,2]
[367477550,1750811451455,-460.0,0.00018904,2]
[367477551,1750811451464,-482.77,0.00018904,2]
[367477552,1750811451473,-1692.88,0.00018904,2]
[367477553,1750811451483,-527.32,0.00018904,2]
[367477554,1750811451492,-1544.24,0.00018904,2]
[367477555,1750811451502,-460.0,0.00018904,2]
[367477556,1750811451511,-501.62,0.00018904,2]
[367477557,1750811451520,-483.62,0.00018904,2]
[367477558,1750811451529,-221.96649965,0.00018904,2]
[367477559,1750811451539,-460.0,0.00018904,2]
[367477560,1750811451548,-1811.2,0.00018904,2]
[367477561,1750811451557,-1170.47,0.00018904,2]
[367477562,1750811451567,-1492.37,0.00018904,2]
[367477563,1750811451576,-460.0,0.00018904,2]
[367477564,1750811451585,-363.0,0.0001892,2]
[367477565,1750811451595,-2000.0,0.00018931,2]
[367477566,1750811451604,-22468.26934126,0.00018934,2]
[367477567,1750811451613,-168.0,0.0001897,2]
[367477568,1750811451622,-590.21,0.0001898,2]
[367477569,1750811451631,-9076.57537263,0.00019,2]
[367477570,1750811451640,-151.0,0.00019,2]
[367477571,1750811451649,-151.0,0.00019,2]
[367477572,1750811451658,-242.002,0.00019,2]
[367477573,1750811451668,-151.0,0.00019,2]
[367477574,1750811451678,-348.089177,0.00019,2]
[367477575,1750811451687,-348.089177,0.00019,2]
[367477576,1750811451696,-168.0,0.00019025,2]
[367477577,1750811451705,-500.0,0.00019068,2]
[367477578,1750811451715,-22468.26934126,0.00019107,2]
[367477579,1750811451724,-363.0,0.00019108,2]
[367477580,1750811451733,-168.0,0.00019139,2]
[367477581,1750811451848,-500.0,0.00019178,2]
[367477582,1750811451858,-500.0,0.00019178,2]
[367477583,1750811451867,-500.0,0.00019178,2]
[367477584,1750811451876,-500.0,0.00019178,2]
[367477585,1750811451885,-500.0,0.00019178,2]
[367477586,1750811451894,-500.0,0.00019178,2]
[367477587,1750811451903,-500.0,0.00019178,2]
[367477588,1750811451913,-500.0,0.00019178,2]
[367477589,1750811451922,-500.0,0.00019178,2]
[367477590,1750811451932,-234.95241404,0.00019178,2]
[367477591,1750811451941,-500.0,0.00019178,2]
[367477592,1750811451951,-500.0,0.00019178,2]
[367477593,1750811451960,-300.0,0.00019178,2]
[367477594,1750811451969,-460.0,0.00019178,2]
[367477595,1750811451978,-515.06,0.00019178,2]
[367477596,1750811451987,-151.124598,0.00019178,2]
[367477597,1750811451999,-460.0,0.00019178,2]
[367477598,1750811452011,-2156.45,0.00019178,2]
[367477599,1750811452020,-460.0,0.00019178,2]
[367477600,1750811452030,-217.12,0.00019178,2]
[367477601,1750811452041,-676.49,0.00019178,2]
[367477602,1750811452051,-151.0,0.00019178,2]
[367477603,1750811452060,-151.0,0.00019178,2]
[367477604,1750811452069,-151.0,0.00019178,2]
[367477605,1750811452080,-460.0,0.00019178,2]
[367477606,1750811452090,-151.0,0.00019178,2]
[367477607,1750811452099,-1313.56,0.00019178,2]
[367477608,1750811452108,-571.77,0.00019178,2]
[367477609,1750811452118,-151.0,0.00019178,2]
[367477610,1750811452127,-460.0,0.00019178,2]
[367477611,1750811452136,-151.0,0.00019178,2]
[367477612,1750811452146,-460.0,0.00019178,2]
[367477613,1750811452156,-460.0,0.00019178,2]
[367477614,1750811452166,-460.0,0.00019178,2]
[367477615,1750811452177,-151.0,0.00019178,2]
[367477616,1750811452186,-151.0,0.00019178,2]
[367477617,1750811452196,-151.0,0.00019178,2]
[367477618,1750811452206,-151.0,0.00019178,2]
[367477619,1750811452215,-460.0,0.00019178,2]
[367477620,1750811452224,-1812.06,0.00019178,2]
[367477621,1750811452234,-460.0,0.00019178,2]
[367477622,1750811452244,-490.59,0.00019178,2]
[367477623,1750811452253,-460.0,0.00019178,2]
[367477624,1750811452262,-500.0,0.00019178,2]
[367477625,1750811452272,-460.0,0.00019178,2]
[367477626,1750811452281,-151.0,0.00019178,2]
[367477627,1750811452290,-151.0,0.00019178,2]
[367477628,1750811452300,-545.47,0.00019178,2]
[367477629,1750811452309,-151.277573,0.00019178,2]